Body Name,Body,Transaction Date,Value,Supplier,Description,Purchase Type,Cost Center,Department,Section
Chorley Borough Council,http://Statistics.Data.gov.uk/id/local-Authority/30UE,01/01/2023,19.00,Shutterstock,Subscription,Online Purchase,4301,EARL - Communities,23A Housing Solutions & Public
Chorley Borough Council,http://Statistics.Data.gov.uk/id/local-Authority/30UE,03/01/2023,8.95,Post office,Postage,Store Purchase,4323,EARL - Communities,23A Housing Solutions & Public
Chorley Borough Council,http://Statistics.Data.gov.uk/id/local-Authority/30UE,03/01/2023,820.00,University of York,Evision course,Online Purchase,5400,EARL - Communities,23A Housing Solutions & Public
Chorley Borough Council,http://Statistics.Data.gov.uk/id/local-Authority/30UE,09/01/2023,180.00,Chartered Inst of Environmental Health,Payment of subs for NAME REDACTED.,Online Purchase,4400,EARL - Communities,23A Housing Solutions & Public
Chorley Borough Council,http://Statistics.Data.gov.uk/id/local-Authority/30UE,11/01/2023,50.00,Calico Lounge,Bake off Prize,Online Purchase,5400,EARL - Communities,23A Housing Solutions & Public
Chorley Borough Council,http://Statistics.Data.gov.uk/id/local-Authority/30UE,12/01/2023,478.00,Currys,Lap top and TV,Store Purchase,5929,EARL - Communities,23A Housing Solutions & Public
Chorley Borough Council,http://Statistics.Data.gov.uk/id/local-Authority/30UE,16/01/2023,4.00,argos,Padlock returned and changed for different on 4 difference,Refund,5129,EARL - Communities,23A Housing Solutions & Public
Chorley Borough Council,http://Statistics.Data.gov.uk/id/local-Authority/30UE,16/01/2023,8.00,Argos,Padlock - Tatton,Store Purchase,5129,EARL - Communities,23A Housing Solutions & Public
Chorley Borough Council,http://Statistics.Data.gov.uk/id/local-Authority/30UE,16/01/2023,190.95,Argos,Furniture - Tatton,Store Purchase,5129,EARL - Communities,23A Housing Solutions & Public
Chorley Borough Council,http://Statistics.Data.gov.uk/id/local-Authority/30UE,16/01/2023,238.35,Asda,Tatton Furnishings,Store Purchase,5129,EARL - Communities,23A Housing Solutions & Public
Chorley Borough Council,http://Statistics.Data.gov.uk/id/local-Authority/30UE,16/01/2023,249.75,Ikea,Tatton Furnishings,Store Purchase,5129,EARL - Communities,23A Housing Solutions & Public
Chorley Borough Council,http://Statistics.Data.gov.uk/id/local-Authority/30UE,16/01/2023,695.10,Next,Tatton Furnishings,Store Purchase,5129,EARL - Communities,23A Housing Solutions & Public
Chorley Borough Council,http://Statistics.Data.gov.uk/id/local-Authority/30UE,16/01/2023,755.00,Ikea,Tatton Furnishings,Store Purchase,5129,EARL - Communities,23A Housing Solutions & Public
Chorley Borough Council,http://Statistics.Data.gov.uk/id/local-Authority/30UE,17/01/2023,49.77,Asia Continental,Refugee Food Shop,Store Purchase,5929,EARL - Communities,23A Housing Solutions & Public
Chorley Borough Council,http://Statistics.Data.gov.uk/id/local-Authority/30UE,17/01/2023,130.07,Asia Continental,Refugee food shop,Store Purchase,5929,EARL - Communities,23A Housing Solutions & Public
Chorley Borough Council,http://Statistics.Data.gov.uk/id/local-Authority/30UE,18/01/2023,50.00,Ottoman Grill and Bar,Bake off price,Store Purchase,5400,EARL - Communities,23A Housing Solutions & Public
Chorley Borough Council,http://Statistics.Data.gov.uk/id/local-Authority/30UE,20/01/2023,114.00,Air Quality News,Member Conference - NAME REDACTED,Online Purchase,4320,EARL - Communities,23A Housing Solutions & Public
Chorley Borough Council,http://Statistics.Data.gov.uk/id/local-Authority/30UE,20/01/2023,148.10,Clarks Shop,Civics Workwear,Store Purchase,4330,EARL - Communities,23A Housing Solutions & Public
Chorley Borough Council,http://Statistics.Data.gov.uk/id/local-Authority/30UE,26/01/2023,1.50,Fee2Pay online,Postage payment,Online Purchase,4340,EARL - Communities,23A Housing Solutions & Public
Chorley Borough Council,http://Statistics.Data.gov.uk/id/local-Authority/30UE,26/01/2023,75.00,Beefeater,Room Hire,Online Purchase,5011,EARL - Communities,23A Housing Solutions & Public
Chorley Borough Council,http://Statistics.Data.gov.uk/id/local-Authority/30UE,01/02/2023,19.00,Shutterstock,Subscription,Online Purchase,4301,EARL - Communities,23A Housing Solutions & Public
Chorley Borough Council,http://Statistics.Data.gov.uk/id/local-Authority/30UE,06/02/2023,31.66,UK Wristbands,Wristbands,Online Purchase,4336,EARL - Communities,23A Housing Solutions & Public
Chorley Borough Council,http://Statistics.Data.gov.uk/id/local-Authority/30UE,08/02/2023,25.90,Mark and Spencer,Apprentice Event,Store Purchase,4400,EARL - Communities,23A Housing Solutions & Public
Chorley Borough Council,http://Statistics.Data.gov.uk/id/local-Authority/30UE,08/02/2023,450.00,Calico,Apprentice event,Store Purchase,4400,EARL - Communities,23A Housing Solutions & Public
Chorley Borough Council,http://Statistics.Data.gov.uk/id/local-Authority/30UE,08/02/2023,450.00,Calico,Apprentice Event,Store Purchase,4400,EARL - Communities,23A Housing Solutions & Public
Chorley Borough Council,http://Statistics.Data.gov.uk/id/local-Authority/30UE,10/02/2023,106.80,Reed Co.UK,Advertising - Vacancy,Online Purchase,4400,EARL - Communities,23A Housing Solutions & Public
Chorley Borough Council,http://Statistics.Data.gov.uk/id/local-Authority/30UE,13/02/2023,129.90,Canva Pro,Subscription,Online Purchase,4618,EARL - Communities,23A Housing Solutions & Public
Chorley Borough Council,http://Statistics.Data.gov.uk/id/local-Authority/30UE,13/02/2023,"1,550.00",Lancashire County Council,Bay Suspension LQX0124786 & LQX0124811,Online Purchase,4330,EARL - Communities,23A Housing Solutions & Public
Chorley Borough Council,http://Statistics.Data.gov.uk/id/local-Authority/30UE,15/02/2023,30.00,Happy Bunnies,Tatton,Store Purchase,5129,EARL - Communities,23A Housing Solutions & Public
Chorley Borough Council,http://Statistics.Data.gov.uk/id/local-Authority/30UE,15/02/2023,75.00,School Hire,Hire of School Hall,Online Purchase,5011,EARL - Communities,23A Housing Solutions & Public
Chorley Borough Council,http://Statistics.Data.gov.uk/id/local-Authority/30UE,15/02/2023,116.05,Iceland,Tatton,Store Purchase,5129,EARL - Communities,23A Housing Solutions & Public
Chorley Borough Council,http://Statistics.Data.gov.uk/id/local-Authority/30UE,15/02/2023,610.20,Dunelm,Tatton,Store Purchase,5129,EARL - Communities,23A Housing Solutions & Public
Chorley Borough Council,http://Statistics.Data.gov.uk/id/local-Authority/30UE,01/03/2023,19.00,Shutterstock,Subscription,Online Purchase,4301,EARL - Communities,23A Housing Solutions & Public
Chorley Borough Council,http://Statistics.Data.gov.uk/id/local-Authority/30UE,06/03/2023,74.67,Amazon,Cast iron drain covers,Online Purchase,5244,EARL - Communities,23A Housing Solutions & Public
Chorley Borough Council,http://Statistics.Data.gov.uk/id/local-Authority/30UE,14/03/2023,14.27,Amazon,Thank you cards,Online Purchase,4001,EARL - Communities,23A Housing Solutions & Public
Chorley Borough Council,http://Statistics.Data.gov.uk/id/local-Authority/30UE,15/03/2023,27.71,Ionos Cloud,Website Domain,Online Purchase,5314,EARL - Communities,23A Housing Solutions & Public
Chorley Borough Council,http://Statistics.Data.gov.uk/id/local-Authority/30UE,31/03/2023,13.00,Companies House,Confirmation Statement,Online Purchase,4707,EARL - Communities,23A Housing Solutions & Public
Chorley Borough Council,http://Statistics.Data.gov.uk/id/local-Authority/30UE,04/04/2023,61.23,Asda,Purchases for Easter Bingo Event,Store Purchase,5400,EARL - Communities,23A Housing Solutions & Public
Chorley Borough Council,http://Statistics.Data.gov.uk/id/local-Authority/30UE,12/04/2023,48.32,Networld Sports,5 a side football,Online Purchase,5400,EARL - Communities,23A Housing Solutions & Public
Chorley Borough Council,http://Statistics.Data.gov.uk/id/local-Authority/30UE,14/04/2023,62.72,PC Ink Office Pad,Election purpose purchase,Online Purchase,4324,EARL - Communities,23A Housing Solutions & Public
Chorley Borough Council,http://Statistics.Data.gov.uk/id/local-Authority/30UE,19/04/2023,27.75,Argos,Tatton furnishings,Store Purchase,5129,EARL - Communities,23A Housing Solutions & Public
Chorley Borough Council,http://Statistics.Data.gov.uk/id/local-Authority/30UE,19/04/2023,35.00,Argos,Tatton furnishings,Store Purchase,5129,EARL - Communities,23A Housing Solutions & Public
Chorley Borough Council,http://Statistics.Data.gov.uk/id/local-Authority/30UE,19/04/2023,52.30,Sainsburys,Primrose,Store Purchase,5925,EARL - Communities,23A Housing Solutions & Public
Chorley Borough Council,http://Statistics.Data.gov.uk/id/local-Authority/30UE,26/04/2023,102.90,Asda,Tatton homewear,Store Purchase,5129,EARL - Communities,23A Housing Solutions & Public
Chorley Borough Council,http://Statistics.Data.gov.uk/id/local-Authority/30UE,19/05/2023,92.70,Argos,Tatton furnishings,Store Purchase,5129,EARL - Communities,23A Housing Solutions & Public
Chorley Borough Council,http://Statistics.Data.gov.uk/id/local-Authority/30UE,25/01/2023,174.99,screwfix,mode 2 EV Charge Cable 5m 3 pin plug to type 1,Store Purchase,4736,CUST - Customer & Digital,Streetscene
Chorley Borough Council,http://Statistics.Data.gov.uk/id/local-Authority/30UE,11/01/2023,292.50,DVLA Swansea,Vehicle Registration Number: VIN REDACTED Reference Number: 9232 5188 0379 0593 Application Made On: 11/01/2023 09:34:14 Vehicle Tax Period: 12 months Vehicle Tax Amount Paid: GBP 290.00,Road Tax,4736,CUST - Customer & Digital,Streetscene
Chorley Borough Council,http://Statistics.Data.gov.uk/id/local-Authority/30UE,09/02/2023,292.50,DVLA Swansea,Vehicle Registration Number: VIN REDACTED Reference Number: 1233 5587 2700 2713 Application Made On: 09/02/2023 12:45:43 Vehicle Tax Period: 12 months Vehicle Tax Amount Paid: GBP 290.00 ,Road Tax,4736,CUST - Customer & Digital,Streetscene
Chorley Borough Council,http://Statistics.Data.gov.uk/id/local-Authority/30UE,09/02/2023,292.50,DVLA Swansea,Vehicle Registration Number: VIN REDACTED Reference Number: 1233 5587 2700 3216 Application Made On: 09/02/2023 12:48:12 Vehicle Tax Period: 12 months Vehicle Tax Amount Paid: GBP 290.00 ,Road Tax,4736,CUST - Customer & Digital,Streetscene
Chorley Borough Council,http://Statistics.Data.gov.uk/id/local-Authority/30UE,09/02/2023,292.50,DVLA Swansea,Vehicle Registration Number: VIN REDACTED Reference Number: 1233 5587 2700 3224 Application Made On: 09/02/2023 12:49:54 Vehicle Tax Period: 12 months Vehicle Tax Amount Paid: GBP 290.00 ,Road Tax,4736,CUST - Customer & Digital,Streetscene
Chorley Borough Council,http://Statistics.Data.gov.uk/id/local-Authority/30UE,09/02/2023,292.50,DVLA Swansea,Vehicle Registration Number: VIN REDACTED Reference Number: 1233 5587 2700 3232 Application Made On: 09/02/2023 12:51:32 Vehicle Tax Period: 12 months Vehicle Tax Amount Paid: GBP 290.00 ,Road Tax,4736,CUST - Customer & Digital,Streetscene
Chorley Borough Council,http://Statistics.Data.gov.uk/id/local-Authority/30UE,09/02/2023,292.50,DVLA Swansea,Vehicle Registration Number: VIN REDACTED Reference Number: 1233 5581 2238 5713 Application Made On: 09/02/2023 12:53:04 Vehicle Tax Period: 12 months Vehicle Tax Amount Paid: GBP 290.00 ,Road Tax,4736,CUST - Customer & Digital,Streetscene
Chorley Borough Council,http://Statistics.Data.gov.uk/id/local-Authority/30UE,09/02/2023,302.50,DVLA Swansea,Vehicle Registration Number: VIN REDACTED Reference Number: 1233 7535 2634 5435 Application Made On: 09/02/2023 12:56:43 Vehicle Tax Period: 12 months Vehicle Tax Amount Paid: GBP 300.00 ,Road Tax,4736,CUST - Customer & Digital,Streetscene
Chorley Borough Council,http://Statistics.Data.gov.uk/id/local-Authority/30UE,03/01/2023,142.44,Cartridge World,Asset tag printing,Online Purchase,4512,CUST - Customer & Digital,ICT
Chorley Borough Council,http://Statistics.Data.gov.uk/id/local-Authority/30UE,03/01/2023,174.00,Freethought,SSL Certificates,Online Purchase,4512,CUST - Customer & Digital,ICT
Chorley Borough Council,http://Statistics.Data.gov.uk/id/local-Authority/30UE,05/01/2023,7.50,Freethought,Certificates,Online Purchase,4512,CUST - Customer & Digital,ICT
Chorley Borough Council,http://Statistics.Data.gov.uk/id/local-Authority/30UE,09/01/2023,99.67,Microsoft,Support,Online Purchase,4512,CUST - Customer & Digital,ICT
Chorley Borough Council,http://Statistics.Data.gov.uk/id/local-Authority/30UE,16/01/2023,4.50,Amazon,VGA cable,Online Purchase,4512,CUST - Customer & Digital,ICT
Chorley Borough Council,http://Statistics.Data.gov.uk/id/local-Authority/30UE,16/01/2023,27.00,Amazon,VGA cable convert,Online Purchase,4512,CUST - Customer & Digital,ICT
Chorley Borough Council,http://Statistics.Data.gov.uk/id/local-Authority/30UE,16/01/2023,50.80,Freethought,Certificates,Online Purchase,4512,CUST - Customer & Digital,ICT
Chorley Borough Council,http://Statistics.Data.gov.uk/id/local-Authority/30UE,17/01/2023,9.00,Amazon,UBC Charger,Online Purchase,4512,CUST - Customer & Digital,ICT
Chorley Borough Council,http://Statistics.Data.gov.uk/id/local-Authority/30UE,17/01/2023,17.98,Amazon,"Cisco Console Cable USB to RJ45 Cable FTDI for Windows 8, 7, Vista,MAC, Linux RS232 6 Ft (Blue) | B01AFNBC3K ASIN: B01AFNBC3K 1 10.82 20% 12.99 12.99",Online Purchase,4512,CUST - Customer & Digital,ICT
Chorley Borough Council,http://Statistics.Data.gov.uk/id/local-Authority/30UE,17/01/2023,89.50,Freethought,Certificates,Online Purchase,4512,CUST - Customer & Digital,ICT
Chorley Borough Council,http://Statistics.Data.gov.uk/id/local-Authority/30UE,17/01/2023,93.86,Amazon,VGA leads,Online Purchase,4512,CUST - Customer & Digital,ICT
Chorley Borough Council,http://Statistics.Data.gov.uk/id/local-Authority/30UE,17/01/2023,94.50,Amazon,VGA leads,Online Purchase,4512,CUST - Customer & Digital,ICT
Chorley Borough Council,http://Statistics.Data.gov.uk/id/local-Authority/30UE,25/01/2023,796.69,Amazon,Monitor stands,Online Purchase,4512,CUST - Customer & Digital,ICT
Chorley Borough Council,http://Statistics.Data.gov.uk/id/local-Authority/30UE,25/01/2023,796.69,Amazon,Dual monitor stands x 30,Online Purchase,4512,CUST - Customer & Digital,ICT
Chorley Borough Council,http://Statistics.Data.gov.uk/id/local-Authority/30UE,07/02/2023,24.00,Freethought,SSL Certificate renewal,Online Purchase,4512,CUST - Customer & Digital,ICT
Chorley Borough Council,http://Statistics.Data.gov.uk/id/local-Authority/30UE,09/02/2023,99.71,Microsoft,Support,Online Purchase,4512,CUST - Customer & Digital,ICT
Chorley Borough Council,http://Statistics.Data.gov.uk/id/local-Authority/30UE,12/02/2023,841.20,Amazon,Amazon receipt stands,Online Purchase,4512,CUST - Customer & Digital,ICT
Chorley Borough Council,http://Statistics.Data.gov.uk/id/local-Authority/30UE,14/02/2023,18.87,Amazon,Amazon cable ties,Online Purchase,4512,CUST - Customer & Digital,ICT
Chorley Borough Council,http://Statistics.Data.gov.uk/id/local-Authority/30UE,14/02/2023,266.00,Pluralsight,Pluralsight screen recording software,Online Purchase,4512,CUST - Customer & Digital,ICT
Chorley Borough Council,http://Statistics.Data.gov.uk/id/local-Authority/30UE,21/02/2023,24.00,Freethought,SSL Certificate renewal,Online Purchase,4512,CUST - Customer & Digital,ICT
Chorley Borough Council,http://Statistics.Data.gov.uk/id/local-Authority/30UE,22/02/2023,24.00,Freethought,SSL Certificate renewal,Online Purchase,4512,CUST - Customer & Digital,ICT
Chorley Borough Council,http://Statistics.Data.gov.uk/id/local-Authority/30UE,01/03/2023,29.30,Freethought,SSL Cert,Online Purchase,4512,CUST - Customer & Digital,ICT
Chorley Borough Council,http://Statistics.Data.gov.uk/id/local-Authority/30UE,08/03/2023,24.00,Freethought,SSL certificate,Online Purchase,4512,CUST - Customer & Digital,ICT
Chorley Borough Council,http://Statistics.Data.gov.uk/id/local-Authority/30UE,11/03/2023,97.10,Microsoft,Cloud services MSFT,Online Purchase,4512,CUST - Customer & Digital,ICT
Chorley Borough Council,http://Statistics.Data.gov.uk/id/local-Authority/30UE,13/03/2023,25.40,Freethought,Freethought SSL certificate,Online Purchase,4512,CUST - Customer & Digital,ICT
Chorley Borough Council,http://Statistics.Data.gov.uk/id/local-Authority/30UE,13/03/2023,48.00,Freethought,SSL Certificates,Online Purchase,4512,CUST - Customer & Digital,ICT
Chorley Borough Council,http://Statistics.Data.gov.uk/id/local-Authority/30UE,29/03/2023,"1,407.42",Ripe NCC,DOP Ripe NCC licences,Online Purchase,4512,CUST - Customer & Digital,ICT
Chorley Borough Council,http://Statistics.Data.gov.uk/id/local-Authority/30UE,17/01/2023,94.00,Mercure - Blackburn,1 nights accommodation for NAME REDACTED,Accomodation,5920,EARL - Communities,23A Housing Solutions & Public
Chorley Borough Council,http://Statistics.Data.gov.uk/id/local-Authority/30UE,19/01/2023,420.00,Mercury Hotel (Bolton),Hotel Accommodation for NAME REDACTED for 20th - 27th January,Accomodation,5920,EARL - Communities,23C Communities
Chorley Borough Council,http://Statistics.Data.gov.uk/id/local-Authority/30UE,30/01/2023,539.98,AG Spot Ltd (Plaza Hotel Chorley),Hotel Room for NAME REDACTED - 30th Jan - 5th Feb 2023 (inclusive),Accomodation,5920,EARL - Communities,23C Communities
Chorley Borough Council,http://Statistics.Data.gov.uk/id/local-Authority/30UE,07/03/2023,87.50,Tesco Stores,Snacks & Drinks for customers accessing the rough sleeper provision,Online Purchase,5920,EARL - Communities,23C Communities
Chorley Borough Council,http://Statistics.Data.gov.uk/id/local-Authority/30UE,13/01/2023,180.00,The Mercury Bolton,NAME REDACTED @ The Mercury Bolton for NAME REDACTED 168420 - 3 nights on behalf of NAME REDACTED ,Accomodation,5920,EARL - Communities,23A Housing Solutions & Public
Chorley Borough Council,http://Statistics.Data.gov.uk/id/local-Authority/30UE,01/02/2023,405.00,Alderley Hotel,NAME REDACTED  Alderley Hotel NAME REDACTED - Booked on behalf of NAME REDACTED 01/02/23-09/02/23,Accomodation,5920,EARL - Communities,23A Housing Solutions & Public
Chorley Borough Council,http://Statistics.Data.gov.uk/id/local-Authority/30UE,25/01/2023,300.00,Alderley Hotel,B&B accommodation - NAME REDACTED - booked on behalf of officer NAME REDACTED 25/01/2023- 01/02/2023,Accomodation,5920,EARL - Communities,23A Housing Solutions & Public
Chorley Borough Council,http://Statistics.Data.gov.uk/id/local-Authority/30UE,09/03/2023,225.00,Alderley Hotel,Alderley Hotel booking- Temporary accommodation - Booked on behalf of NAME REDACTED ,Accomodation,5920,EARL - Communities,23A Housing Solutions & Public
Chorley Borough Council,http://Statistics.Data.gov.uk/id/local-Authority/30UE,13/03/2023,45.00,Alderley Hotel,Booking for B&B- NAME REDACTED  - on behalf of NAME REDACTED ,Accomodation,5920,EARL - Communities,23A Housing Solutions & Public
Chorley Borough Council,http://Statistics.Data.gov.uk/id/local-Authority/30UE,14/03/2023,45.00,Alderley Hotel,B&B booking- NAME REDACTED - On behalf of NAME REDACTED - 14/03/2023,Accomodation,5920,EARL - Communities,23A Housing Solutions & Public
Chorley Borough Council,http://Statistics.Data.gov.uk/id/local-Authority/30UE,11/01/2023,420.00,Mercury Hotel,Hotel Booking for NAME REDACTED 13/01/23 - 20/01/23,Accomodation,5920,EARL - Communities,23A Housing Solutions & Public
Chorley Borough Council,http://Statistics.Data.gov.uk/id/local-Authority/30UE,25/01/2023,420.00,Mercury Hotel,Hotel Accommodation NAME REDACTED Mercury Hotel,Accomodation,5920,EARL - Communities,23A Housing Solutions & Public
Chorley Borough Council,http://Statistics.Data.gov.uk/id/local-Authority/30UE,09/02/2023,600.00,Alderley Hotel,Hotel Accommodation at Alderley Blackpool for NAME REDACTED  10/02/23 - 24/02/23,Accomodation,5920,EARL - Communities,23A Housing Solutions & Public
Chorley Borough Council,http://Statistics.Data.gov.uk/id/local-Authority/30UE,22/02/2023,300.00,Alderley Hotel,NAME REDACTED 152337 hotel accommodation Alderley Hotel,Accomodation,5920,EARL - Communities,23A Housing Solutions & Public
Chorley Borough Council,http://Statistics.Data.gov.uk/id/local-Authority/30UE,02/03/2023,300.00,Alderley Hotel,NAME REDACTED  hotel accommodation Alderley Hotel - NAME REDACTED 152337,Accomodation,5920,EARL - Communities,23A Housing Solutions & Public
Chorley Borough Council,http://Statistics.Data.gov.uk/id/local-Authority/30UE,15/03/2023,390.00,Alderley Hotel,Hotel Accommodation for NAME REDACTED 15/03/23 - 24/03/23,Accomodation,5920,EARL - Communities,23A Housing Solutions & Public
Chorley Borough Council,http://Statistics.Data.gov.uk/id/local-Authority/30UE,24/03/2023,300.00,Alderley Hotel,Hotel Accommodation NAME REDACTED  24/03/23 - 31/03/23,Accomodation,5920,EARL - Communities,23A Housing Solutions & Public
Chorley Borough Council,http://Statistics.Data.gov.uk/id/local-Authority/30UE,15/02/2023,100.00,ALDERLY HOTEL,HOTEL ACCOMMODATION,Accomodation,5920,EARL - Communities,23A Housing Solutions & Public
Chorley Borough Council,http://Statistics.Data.gov.uk/id/local-Authority/30UE,17/02/2023,150.00,ALDERLY HOTEL,HOTEL ACCOMMODATION,Accomodation,5920,EARL - Communities,23A Housing Solutions & Public
Chorley Borough Council,http://Statistics.Data.gov.uk/id/local-Authority/30UE,20/02/2023,55.25,PURPLE ROOMS,HOTEL RESERVATION,Accomodation,5920,EARL - Communities,23A Housing Solutions & Public
Chorley Borough Council,http://Statistics.Data.gov.uk/id/local-Authority/30UE,21/02/2023,55.25,PURPLE ROOMS,HOTEL RESERVATION,Accomodation,5920,EARL - Communities,23A Housing Solutions & Public
Chorley Borough Council,http://Statistics.Data.gov.uk/id/local-Authority/30UE,21/02/2023,66.90,MCDONALD HOTEL TICKLED TROUT,HOTEL,Accomodation,5920,EARL - Communities,23A Housing Solutions & Public
Chorley Borough Council,http://Statistics.Data.gov.uk/id/local-Authority/30UE,23/02/2023,100.00,Meta,Meta Facebook Ads Markets,Online Purchase,5120,GOVN - Policy & Governance,22D Communications & Visitor E
Chorley Borough Council,http://Statistics.Data.gov.uk/id/local-Authority/30UE,06/03/2023,30.00,The Purple Guide,The Purple Guide Subscription,Online Purchase,4307,GOVN - Policy & Governance,22D Communications & Visitor E
Chorley Borough Council,http://Statistics.Data.gov.uk/id/local-Authority/30UE,08/03/2023,225.60,Jonas Event Tech,Jonas Event Technology - Hand Held Scanner Device,Online Purchase,4309,GOVN - Policy & Governance,22D Communications & Visitor E
Chorley Borough Council,http://Statistics.Data.gov.uk/id/local-Authority/30UE,20/03/2023,350.88,GES Limited,Global Experience Specialists,Online Purchase,4309,GOVN - Policy & Governance,22D Communications & Visitor E
Chorley Borough Council,http://Statistics.Data.gov.uk/id/local-Authority/30UE,23/03/2023,5.64,Meta,Meta Facebook Ads (Battery Campaign),Online Purchase,4660,GOVN - Policy & Governance,22D Communications & Visitor E
Chorley Borough Council,http://Statistics.Data.gov.uk/id/local-Authority/30UE,23/03/2023,8.98,Meta,Meta Facebook Ads (Market),Online Purchase,5120,GOVN - Policy & Governance,22D Communications & Visitor E
Chorley Borough Council,http://Statistics.Data.gov.uk/id/local-Authority/30UE,23/03/2023,74.21,Meta,Meta Facebook Ads (Chorley 10k),Online Purchase,4307,GOVN - Policy & Governance,22D Communications & Visitor E
Chorley Borough Council,http://Statistics.Data.gov.uk/id/local-Authority/30UE,25/03/2023,7.17,Meta,Meta Facebook Ads,Online Purchase,4660,GOVN - Policy & Governance,22D Communications & Visitor E
Chorley Borough Council,http://Statistics.Data.gov.uk/id/local-Authority/30UE,25/03/2023,200.00,Meta,Meta Facebook Ads (Chorley Flower Show),Online Purchase,4305,GOVN - Policy & Governance,22D Communications & Visitor E
Chorley Borough Council,http://Statistics.Data.gov.uk/id/local-Authority/30UE,18/04/2023,76.00,Harrogate Flower Show,3 Tickets for Harrogate Flower Show,Online Purchase,4305,GOVN - Policy & Governance,22D Communications & Visitor E
Chorley Borough Council,http://Statistics.Data.gov.uk/id/local-Authority/30UE,26/04/2023,31.96,Amazon,"Mayoii 20 PCS Coronation Bunting, 19.6FT Coronation Flags NAME REDACTED - x4",Online Purchase,4307,GOVN - Policy & Governance,22D Communications & Visitor E
Chorley Borough Council,http://Statistics.Data.gov.uk/id/local-Authority/30UE,22/02/2023,425.00,Alderley Hotel,Alderley Hotel- Blackpool- NAME REDACTED  22.02.23-27.02.23,Accomodation,5920,EARL - Communities,23A Housing Solutions & Public
Chorley Borough Council,http://Statistics.Data.gov.uk/id/local-Authority/30UE,03/03/2023,49.55,Card Factory,IWD Event Decorations,Store Purchase,5935,EARL - Communities,23C Communities
Chorley Borough Council,http://Statistics.Data.gov.uk/id/local-Authority/30UE,11/03/2023,64.00,Jorvik Viking Centre,Jorvik Viking Centre Entry Fee Cultural Trip NAME REDACTED ,Store Purchase,5935,EARL - Communities,23C Communities
Chorley Borough Council,http://Statistics.Data.gov.uk/id/local-Authority/30UE,20/03/2023,174.00,Pearson Professional Assessments Limited,"CIWM/WAMITAB CIWM/WAMITAB Continuing Competence Test English-UK Appointment: Thursday, April 27, 2023 10:00:00 AM BST NAME REDACTED  Center: Pearson Professional Centres-UK Preston Preston",Online Purchase,4736,CUST - Customer & Digital,Streetscene
